bitfinex/quotes_ETHUSD_20240924
["timestamp","ask_amount","ask_price","bid_price","bid_amount"]
[1727188015173,3.83369,2608.5,2607.9,3.8345]
[1727188015373,3.83351,2608.6,2607.8,1.6499]
[1727188015717,3.83429,2608.1,2607.8,1.6499]
[1727188016118,3.88268439,2608.9,2607.4,1.6499]
[1727188016119,3.8345,2607.9,2607.4,1.6499]
[1727188016319,3.83467,2607.8,2607.4,1.6499]
[1727188016485,3.83442,2608.0,2607.5,3.83506]
[1727188016886,3.83414,2608.2,2607.5,7.67006]
[1727188017224,3.83385,2608.4,2607.8,3.8345]
[1727188017376,3.83385,2608.4,2607.9,1.6499]
[1727188018613,3.83385,2608.4,2607.9,5.48437]
[1727188018818,3.83356,2608.6,2608.0,3.83433]
[1727188019026,3.83401,2608.3,2607.9,1.6499]
[1727188020321,3.8337,2608.5,2607.9,1.6499]
[1727188020499,3.83341,2608.7,2608.0,1.6499]
[1727188020707,3.83338,2608.7,2608.1,3.83418]
[1727188020905,3.83377,2608.4,2608.0,1.6499]
[1727188021098,7.66707,2608.6,2608.0,1.6499]
[1727188021300,3.83391,2608.4,2608.0,1.6499]
[1727188021518,3.8342,2608.1,2608.0,1.6499]
[1727188021745,3.8342,2608.1,2607.0,3.83578]
[1727188021746,3.83443,2608.0,2607.6,1.6218]
[1727188022600,3.83451,2607.9,2607.6,1.6218]
[1727188022838,3.83443,2608.0,2607.6,1.6218]
[1727188024028,3.83414,2608.2,2607.6,5.45673]
[1727188024200,3.83395,2608.3,2607.6,5.45665]
[1727188024400,3.83429,2608.1,2607.6,1.6218]
[1727188024600,3.83429,2608.1,2607.6,5.45673]
[1727188025140,3.83401,2608.3,2607.6,1.6218]
[1727188025464,3.83458,2607.9,2607.6,1.6218]
[1727188025747,3.83513,2607.5,2607.0,3.83574]
[1727188025948,3.83513,2607.5,2607.0,5.45759]
[1727188026245,3.83487,2607.7,2607.1,3.83567]
[1727188026398,3.83549,2607.3,2607.0,1.6218]
[1727188026601,0.3496,2608.0,2606.5,1.6218]
[1727188026602,3.83567,2607.1,2606.5,1.6218]
[1727188027114,3.83567,2607.1,2606.6,3.83636]
[1727188027299,3.83584,2607.0,2606.5,5.45836]
[1727188027630,3.83584,2607.0,2606.5,1.6218]
[1727188027845,3.83665,2606.5,2606.1,1.6218]
[1727188028147,3.83646,2606.6,2606.1,1.6218]
[1727188028451,3.83646,2606.6,2605.7,3.83765]
[1727188028452,0.3496,2606.7,2605.7,1.6218]
[1727188028639,3.83723,2606.1,2605.7,1.6568863]
[1727188029304,3.83693,2606.3,2605.7,1.6568863]
[1727188029614,3.83663,2606.5,2605.9,3.83733]
[1727188029816,3.83633,2606.7,2605.7,2.20635293]
[1727188029817,3.83633,2606.7,2606.1,3.83715]
[1727188030015,3.83633,2606.7,2606.0,0.06868042]
[1727188030016,3.83616,2606.8,2606.2,3.90563214]
[1727188030255,0.3496,2607.0,2606.3,1.6218]
[1727188030256,3.83582,2607.0,2606.3,1.6218]
[1727188030545,0.09591752,2606.9,2605.9,1.6568863]
[1727188030702,3.83729,2606.0,2605.9,0.0350863]
[1727188031102,3.93323178,2606.0,2605.9,0.0350863]
[1727188031326,3.83729,2606.0,2605.9,0.0350863]
[1727188032141,3.93323949,2606.0,2605.9,0.0350863]
[1727188032436,3.83729,2606.0,2605.9,0.0350863]
[1727188032638,3.83727,2606.1,2605.9,0.0350863]
[1727188032848,3.83691,2606.3,2605.9,0.0350863]
[1727188033055,3.83702,2606.2,2605.9,0.0350863]
[1727188033215,3.83691,2606.3,2605.9,0.0350863]
[1727188033415,3.0,2606.6,2606.0,1.6218]
[1727188033616,3.83634,2606.7,2606.0,6.00842363]
[1727188033817,0.77930963,2607.2,2606.0,2.17122363]
[1727188034054,3.83587,2607.0,2606.4,3.83662]
[1727188034352,3.83587,2607.0,2606.4,3.83659]
[1727188034718,3.83557,2607.2,2606.6,3.83632]
[1727188034919,0.77930963,2607.6,2606.8,3.8361]
[1727188034920,3.83499,2607.6,2606.8,3.8361]
[1727188035124,3.83526,2607.4,2606.8,4.3819]
[1727188035431,3.83472,2607.8,2607.0,3.83571]
[1727188035630,3.83503,2607.6,2607.0,3.83571]
[1727188035860,3.83472,2607.8,2607.1,3.83556]
[1727188036064,4.18401,2608.0,2607.3,3.83527]
[1727188036368,3.83454,2607.9,2607.4,3.83522]
[1727188036571,5.49210789,2608.6,2607.4,3.83522]
[1727188036572,3.83384,2608.4,2607.8,3.83463]
[1727188036716,3.83384,2608.4,2607.8,3.83456]
[1727188036922,0.0102639,2608.8,2608.2,5.45584]
[1727188037124,0.0102639,2608.8,2608.2,5.45581]
[1727188037430,3.83334,2608.7,2608.2,1.6218]
[1727188037643,3.83334,2608.7,2608.2,5.45584]
[1727188037865,0.0102639,2608.8,2608.2,1.6218]
[1727188038017,3.83334,2608.7,2608.2,1.6218]
[1727188038217,0.0102639,2608.8,2608.2,5.45572]
[1727188038218,3.8434639,2608.8,2608.2,5.45572]
[1727188038722,3.83352,2608.6,2608.2,1.6218]
[1727188039005,0.0102639,2608.8,2608.2,1.6218]
[1727188039228,3.83385,2608.4,2607.8,1.6218]
[1727188039423,3.8341,2608.2,2607.8,1.6218]
[1727188039658,3.83481,2607.7,2607.1,3.83557]
[1727188039841,3.83481,2607.7,2607.1,7.67116]
[1727188040018,3.83481,2607.7,2607.1,4.602686]
[1727188040218,3.93068352,2607.7,2607.1,3.83563]
[1727188040524,3.93068352,2607.7,2607.1,3.83567]
[1727188040725,3.83481,2607.7,2607.1,7.67124]
[1727188041321,0.09587684,2607.6,2607.1,3.83557]
[1727188041622,0.09587684,2607.6,2606.7,1.6218]
[1727188041623,3.8351,2607.5,2607.0,3.83579]
[1727188041935,3.8351,2607.5,2606.9,3.83595]
[1727188042155,3.93112557,2607.4,2606.7,5.45799]
[1727188042319,3.93112557,2607.4,2606.7,5.45797]
[1727188042320,3.83554,2607.2,2606.7,5.45797]
[1727188042525,3.83554,2607.2,2606.7,1.6218]
[1727188042729,3.83508,2607.6,2606.8,3.83612]
[1727188043049,3.8347,2607.8,2607.0,3.83582]
[1727188043227,3.8347,2607.8,2607.3,3.83537]
[1727188043982,7.66889,2608.0,2607.4,5.45699]
[1727188044269,1.12890963,2608.4,2607.7,3.83469]
[1727188044270,3.83392,2608.3,2607.7,3.83469]
[1727188044474,3.83384,2608.4,2607.7,3.83469]
[1727188044628,3.83407,2608.2,2607.7,3.83469]
[1727188044828,3.83407,2608.2,2607.6,3.83484]
[1727188045264,3.83415,2608.2,2607.7,0.77383796]
[1727188045474,0.3496,2608.7,2607.5,3.83498]
[1727188045475,3.0,2608.5,2607.5,3.83498]
[1727188045680,3.83443,2608.0,2607.4,1.6218]
[1727188045982,3.92968435,2608.4,2607.0,1.6218]
[1727188045983,3.83523,2607.4,2607.0,1.6218]
[1727188046282,3.83548,2607.3,2607.0,1.6218]
[1727188046460,0.09588782,2607.5,2606.6,1.6218]
[1727188046461,0.3496,2607.5,2606.6,1.6218]
[1727188046633,3.83605,2606.9,2606.6,1.6218]
[1727188047084,3.83586,2607.0,2606.6,1.6218]
[1727188047371,3.8357,2607.1,2606.6,1.6218]
[1727188047580,3.83542,2607.3,2606.7,3.83618]
[1727188047935,3.83542,2607.3,2606.8,3.83608]
[1727188048430,3.83556,2607.2,2606.6,6.387674]
[1727188048634,3.83542,2607.3,2606.8,3.83602]
[1727188048847,3.83539,2607.3,2606.8,4.8583834]
[1727188049074,7.67031,2607.5,2606.9,3.83596]
[1727188049258,3.8355,2607.3,2606.8,1.0223634]
[1727188049435,3.8355,2607.3,2606.8,3.83611]
[1727188049836,7.6704,2607.5,2606.9,3.83594]
[1727188050037,7.67036,2607.5,2606.9,3.83594]
[1727188050268,3.83524,2607.4,2606.8,7.74065394]
[1727188050470,3.83524,2607.4,2606.8,4.77225539]
[1727188050660,7.67035,2607.5,2607.0,3.83572]
[1727188050859,3.0,2607.7,2606.8,0.93624539]
[1727188050860,3.83555,2607.2,2606.8,0.93624539]
[1727188051110,3.83533,2607.4,2606.8,0.93624539]
[1727188051111,7.6707,2607.4,2606.8,3.83611]
[1727188051275,7.67065,2607.4,2606.8,3.83611]
[1727188051580,3.83555,2607.2,2606.7,3.83623]
[1727188051737,0.09588872,2607.1,2606.3,1.6623]
[1727188052064,3.83637,2606.7,2606.3,1.6623]
[1727188052270,0.0959158,2606.6,2605.9,1.6973863]
[1727188052475,3.83689,2606.3,2605.9,1.6973863]
[1727188052671,3.83686,2606.3,2605.9,1.6973863]
[1727188052870,3.83718,2606.1,2605.9,1.6973863]
[1727188053585,3.83729,2606.0,2605.9,0.0350863]
[1727188053882,3.93322276,2606.0,2605.9,0.0350863]
[1727188054243,6.93323164,2606.0,2605.9,0.0350863]
[1727188054444,6.83729,2606.0,2605.9,0.0350863]
[1727188054640,0.77930963,2606.5,2605.9,0.0350863]
[1727188054850,3.83694,2606.3,2605.9,0.0350863]
[1727188055141,3.83702,2606.2,2605.9,0.0350863]
[1727188055341,3.83729,2606.0,2605.9,0.0350863]
[1727188055740,6.83729,2606.0,2605.9,0.0350863]
[1727188056449,3.83803,2605.5,2605.4,0.005]
[1727188056677,3.93399915,2605.5,2605.4,0.005]
[1727188057167,7.83359945,2605.5,2605.4,0.005]
[1727188057351,11.76580438,2605.5,2605.4,0.005]
[1727188057554,11.11983493,2605.5,2605.4,0.005]
[1727188058197,11.66983493,2605.5,2605.4,0.005]
[1727188058498,7.18763,2605.5,2605.4,0.005]
[1727188059397,3.83789,2605.6,2605.4,0.005]
[1727188059691,3.83803,2605.5,2605.4,0.005]
[1727188060169,6.83803,2605.5,2605.4,0.005]
[1727188060372,3.83789,2605.6,2605.4,0.005]
[1727188060680,3.83803,2605.5,2605.4,0.005]
[1727188061058,3.93399611,2605.5,2605.4,0.005]
[1727188061308,4.18763,2605.5,2605.4,0.005]
[1727188061973,7.18763,2605.5,2605.4,0.005]
[1727188062355,6.83832,2605.3,2605.2,0.07]
[1727188064056,3.0,2605.3,2605.2,0.07]
[1727188064362,6.83832,2605.3,2605.2,0.07]
[1727188064587,3.83819,2605.4,2605.2,0.07]
[1727188064784,3.83774,2605.7,2605.2,0.07]
[1727188065313,3.83806,2605.5,2605.2,0.46539302]
[1727188065517,3.83806,2605.5,2605.2,0.07]
[1727188065518,3.83822,2605.4,2605.2,0.07]
[1727188065809,4.28180493,2606.6,2605.2,0.07]
[1727188066026,3.83797,2605.6,2605.2,0.07]
[1727188066184,3.83819,2605.4,2605.2,0.07]
[1727188066383,7.67648,2605.4,2605.2,0.07]
[1727188066589,3.83819,2605.4,2605.2,0.07]
[1727188066784,3.83832,2605.3,2605.2,0.07]
[1727188067175,3.83819,2605.4,2605.2,0.07]
[1727188067575,7.6765,2605.4,2605.2,0.07]
[1727188067876,3.83819,2605.4,2605.2,0.07]
[1727188068094,3.83832,2605.3,2605.2,0.07]
[1727188068519,4.18792,2605.3,2605.2,0.07]
[1727188068719,7.18792,2605.3,2605.2,0.07]
[1727188069062,7.73792,2605.3,2605.2,0.07]
[1727188071502,6.83891,2604.9,2604.8,0.11139398]
[1727188072217,3.84142,2603.2,2602.2,3.8882202]
[1727188072418,3.55,2604.8,2601.6,2.26408993]
[1727188072419,3.0,2602.2,2601.6,2.26408993]
[1727188072623,3.0,2602.2,2601.6,0.83789875]
[1727188072624,3.84364,2601.7,2601.6,0.83789875]
[1727188072850,3.84348,2601.9,2601.6,0.83789875]
[1727188073437,4.19324,2601.7,2601.6,0.83789875]
[1727188073999,3.84364,2601.7,2601.6,0.83789875]
[1727188074522,3.84348,2601.9,2601.6,0.83789875]
[1727188074836,3.84349,2601.8,2601.6,0.83789875]
[1727188075044,3.84309,2602.1,2601.6,0.83789875]
[1727188075697,3.8429,2602.2,2601.6,0.83789875]
[1727188075898,3.84278,2602.3,2601.6,1.46594462]
[1727188076124,3.8425,2602.5,2601.6,1.46594462]
[1727188076335,4.05281,2602.6,2601.8,3.84338]
[1727188076588,0.2104,2602.6,2601.9,3.84334]
[1727188076835,0.2104,2602.6,2602.0,0.384334]
[1727188077214,4.05281,2602.6,2602.0,0.384334]
[1727188077394,0.2104,2602.6,2602.0,0.384334]
[1727188077734,0.2104,2602.6,2602.1,3.84304]
[1727188077923,0.2104,2602.6,2602.4,1.5985]
[1727188078131,3.93220493,2603.4,2602.4,1.5985]
[1727188078299,3.84182,2603.0,2602.4,1.5985]
[1727188078828,3.84143,2603.2,2602.4,1.5985]
[1727188079023,3.84145,2603.2,2602.4,1.5985]
[1727188079203,3.93220493,2603.4,2602.4,1.5985]
[1727188079204,3.84201,2602.9,2602.4,1.5985]
[1727188079402,3.84157,2603.1,2602.4,1.5985]
[1727188079724,3.84157,2603.1,2602.4,5.985234]
[1727188079928,3.93220493,2603.4,2602.4,1.5985]
[1727188080257,3.93220493,2603.4,2601.9,3.84322]
[1727188080258,3.84209,2602.8,2602.1,5.44153]
[1727188080539,3.84235,2602.6,2602.1,1.5985]
[1727188080752,3.84174,2603.0,2602.1,1.5985]
[1727188080912,3.0,2603.3,2602.3,3.84263]
[1727188080913,3.84145,2603.2,2602.3,3.84263]
[1727188081238,3.84184,2603.0,2602.3,3.84273]
[1727188081600,3.84203,2602.8,2602.1,5.44151]
[1727188081837,3.0,2603.1,2602.1,1.5985]
[1727188082146,3.84147,2603.2,2602.4,3.8425]
[1727188082357,3.84006,2604.2,2602.1,2.142669]
[1727188082358,3.841,2603.5,2602.6,3.8422]
[1727188082495,3.841,2603.5,2602.8,3.84201]
[1727188082695,3.84152,2603.2,2602.6,0.38422]
[1727188082900,3.84148,2603.2,2602.3,3.84274]
[1727188083252,0.3496,2603.8,2602.3,1.6315]
[1727188083253,3.93220493,2603.8,2602.3,1.6315]
[1727188083541,3.84087,2603.6,2603.0,3.84161]
[1727188083898,0.09602914,2603.5,2602.3,1.6315]
[1727188084154,3.84138,2603.3,2602.7,3.84212]
[1727188084357,3.8409,2603.6,2602.9,3.84183]
[1727188084558,3.84075,2603.7,2602.9,3.84183]
[1727188084757,3.84075,2603.7,2603.1,1.6315]
[1727188084758,3.84099,2603.5,2603.1,1.6315]
[1727188085203,3.84072,2603.7,2603.1,1.6315]
[1727188085354,3.0,2604.0,2603.1,1.6315]
[1727188085703,4.19096,2603.3,2602.2,1.6315]
[1727188085887,4.19096,2603.3,2602.2,5.47426]
[1727188086086,3.84184,2603.0,2602.3,3.84274]
[1727188086394,3.84269,2602.4,2602.2,1.6315]
[1727188086765,3.84237,2602.6,2602.2,1.6315]
[1727188086766,3.93843899,2602.6,2602.2,1.6315]
[1727188086998,3.84237,2602.6,2602.2,1.6315]
[1727188087997,3.84208,2602.8,2602.2,1.6315]
[1727188088392,7.68421,2602.8,2602.2,1.6315]
[1727188088572,3.84177,2603.0,2602.2,5.47439]
[1727188088773,3.3496,2603.3,2602.2,5.47439]
[1727188088774,3.84159,2603.1,2602.5,3.84242]
[1727188088994,3.84175,2603.0,2602.4,3.84248]
[1727188089313,3.8415,2603.2,2602.4,3.84248]
[1727188089467,3.84088,2603.6,2603.0,3.84167]
[1727188089860,3.84059,2603.8,2603.0,3.84167]
[1727188090103,3.84055,2603.8,2603.4,1.6315]
[1727188091091,3.84071,2603.7,2603.4,1.6315]
[1727188091362,3.84055,2603.8,2603.4,1.6315]
[1727188092004,7.68121,2603.8,2603.4,1.6315]
[1727188092313,7.68121,2603.8,2602.9,1.6315]
[1727188092314,3.84124,2603.4,2602.9,1.6315]
[1727188092478,7.68249,2603.4,2602.9,1.6315]
[1727188092677,3.93220493,2603.8,2602.9,1.6315]
[1727188092678,3.93677415,2603.7,2602.9,1.6315]
[1727188092878,3.84058,2603.8,2603.0,3.84167]
[1727188093078,3.84083,2603.6,2603.0,4.388987]
[1727188093411,3.84122,2603.4,2602.9,1.6315]
[1727188093613,0.09604211,2603.4,2602.3,1.6315]
[1727188093902,3.8418,2603.0,2602.4,3.84245]
[1727188094122,3.84149,2603.2,2602.6,3.84229]
[1727188094312,7.68305,2603.2,2602.6,3.84229]
[1727188094518,3.84214,2602.8,2602.3,1.6315]
[1727188095023,3.84211,2602.8,2602.3,1.6315]
[1727188095314,3.84232,2602.6,2602.3,1.6315]
[1727188095704,3.84207,2602.8,2602.3,1.6315]
[1727188095909,3.8418,2603.0,2602.3,1.6315]
[1727188096105,3.84229,2602.7,2602.3,1.6315]
[1727188096335,3.84251,2602.5,2602.3,1.6315]
[1727188096541,3.8426,2602.4,2602.3,1.6315]
[1727188096755,3.84268,2602.4,2601.9,1.6315]
[1727188096916,3.84239,2602.6,2601.9,5.47472]
[1727188097241,3.84239,2602.6,2601.9,2.178972]
[1727188097443,3.0,2602.9,2601.9,1.6315]
[1727188097801,3.84231,2602.6,2601.9,1.6315]
[1727188098252,3.84263,2602.4,2601.9,5.47475]
[1727188098410,3.84263,2602.4,2601.9,1.6315]
[1727188098941,3.84248,2602.5,2601.9,1.6315]
[1727188099152,3.84261,2602.4,2601.9,5.4748]
[1727188099305,3.84276,2602.3,2601.9,1.6315]
[1727188099653,3.84238,2602.6,2602.1,3.84302]
[1727188099807,6.84216,2602.7,2602.2,3.8429]
[1727188100006,0.3496,2603.1,2602.2,3.8429]
[1727188100234,0.3496,2603.1,2602.0,3.84316]
[1727188100235,3.84239,2602.6,2602.0,3.84316]
[1727188100510,3.84263,2602.4,2601.9,1.6315]
[1727188100726,3.84263,2602.4,2601.9,5.47481]
[1727188100929,0.3496,2603.1,2601.6,0.83789875]
[1727188101142,3.84296,2602.2,2601.6,0.83789875]
[1727188101313,3.8436,2601.8,2601.6,0.83789875]
[1727188102024,3.84364,2601.7,2601.6,0.83789875]
[1727188103343,3.84413,2601.4,2601.1,1.24]
[1727188103652,7.68856,2601.3,2601.1,1.24]
[1727188104143,3.84437,2601.2,2601.1,1.24]
[1727188106265,3.84424,2601.3,2601.1,1.24]
[1727188106624,3.93220493,2601.8,2601.1,1.24]
[1727188106856,0.3496,2602.7,2601.9,3.84321]
[1727188107063,4.19132,2603.0,2602.5,1.24]
[1727188107211,3.84134,2603.3,2602.5,1.24]
[1727188107410,3.84134,2603.3,2602.7,3.84215]
[1727188107655,3.84134,2603.3,2602.5,1.24]
[1727188107656,3.84142,2603.2,2602.5,1.24]
[1727188107810,3.8418,2603.0,2602.5,1.24]
[1727188108152,3.93220493,2603.4,2602.5,1.24]
[1727188108153,3.8423,2602.7,2602.5,1.24]
[1727188108459,3.93220493,2603.4,2602.5,1.24]
[1727188108663,3.84142,2603.2,2602.5,5.08232]
[1727188108835,3.84092,2603.6,2602.6,2.139732]
[1727188109022,3.84113,2603.4,2603.3,1.24]
[1727188109845,7.77333493,2603.4,2603.3,1.24]
[1727188110864,3.84113,2603.4,2603.3,1.24]
[1727188111163,3.84099,2603.5,2603.3,1.24]
[1727188111332,6.84075,2603.7,2603.3,1.24]
[1727188111333,3.84075,2603.7,2603.3,1.24]
[1727188112529,3.84057,2603.8,2603.3,1.24]
[1727188112755,3.93220493,2603.8,2603.3,1.24]
[1727188112930,3.84113,2603.4,2603.3,1.24]
[1727188113159,3.84098,2603.5,2603.3,1.24]
[1727188113632,7.68157,2603.7,2603.0,3.8416]
[1727188113836,3.84115,2603.4,2602.9,3.84177]
[1727188114040,7.68189,2603.6,2602.9,3.84186]
[1727188114275,3.84106,2603.5,2602.9,3.84186]
[1727188114473,3.93220493,2603.8,2602.6,1.6315]
[1727188114474,0.09604003,2603.4,2602.6,1.6315]
[1727188114864,3.84175,2603.0,2602.6,1.6315]
[1727188115299,3.84098,2603.5,2602.6,1.6315]
[1727188115300,3.84191,2602.9,2602.6,1.6315]
[1727188115598,3.84171,2603.1,2602.6,1.6315]
[1727188115901,3.84141,2603.3,2602.3,5.46959]
[1727188116212,3.84249,2602.5,2602.0,1.6269]
[1727188116421,0.3496,2602.9,2602.0,1.6269]
[1727188116422,3.84286,2602.3,2602.0,1.6269]
[1727188116703,3.84216,2602.7,2602.2,3.84281]
[1727188117112,3.84216,2602.7,2601.2,4.30464359]
[1727188117113,30.70530635,2600.0,2599.5,2.80440571]
[1727188117270,4.46325529,2600.0,2599.9,11.77850493]
[1727188117468,0.00203,2601.7,2601.6,3.84378]
[1727188117781,0.00203,2601.7,2601.6,3.04166768]
[1727188118725,0.1580684,2601.7,2601.6,3.04166768]
[1727188118906,0.1580684,2601.7,2601.6,3.73022645]
[1727188119992,0.1580684,2601.7,2601.6,3.04166768]
[1727188120194,0.1580684,2601.7,2601.6,4.66856768]
[1727188120604,0.1580684,2601.7,2601.6,1.6269]
[1727188120805,0.1580684,2601.7,2601.6,5.47068]
[1727188121627,0.1580684,2601.7,2601.6,1.6269]
[1727188121895,0.1580684,2601.7,2601.0,3.84461]
[1727188121896,0.1580684,2601.7,2601.0,1.6269]
[1727188122223,1.7001684,2601.7,2601.0,5.47156]
[1727188122396,0.90569764,2601.7,2601.0,5.47156]
[1727188122594,4.74935764,2601.7,2601.0,9.31615]
[1727188122906,4.74935764,2601.7,2600.1,3.84591]
[1727188122907,3.84441,2601.2,2600.7,1.6269]
[1727188123092,3.84466,2601.1,2600.4,5.47242]
[1727188123292,3.84438,2601.2,2600.5,3.84532]
[1727188123495,0.0805063,2601.2,2600.7,3.845]
[1727188123720,0.0805063,2601.2,2600.6,3.84523]
[1727188123908,0.0805063,2601.2,2600.6,3.84518]
[1727188124249,0.0805063,2601.2,2600.7,0.06914131]
[1727188124436,0.0805063,2601.2,2600.6,0.0691415]
[1727188124634,0.0805063,2601.2,2600.7,3.84501]
[1727188124937,0.0805063,2601.2,2601.0,3.84455]
[1727188125106,0.0805063,2601.2,2601.1,5.47142]
[1727188125846,0.0805063,2601.2,2600.8,3.84488]
[1727188126210,0.0805063,2601.2,2600.7,4.62098615]
[1727188126411,0.0805063,2601.2,2600.8,3.84496]
[1727188126771,3.9249563,2601.2,2600.7,0.77594615]
[1727188126924,3.9249563,2601.2,2600.5,5.47219]
[1727188127123,3.9249563,2601.2,2600.6,3.84526]
[1727188127352,7.7694763,2601.2,2600.5,5.47219]
[1727188127554,3.9249563,2601.2,2600.5,5.47219]
[1727188127859,3.9249563,2601.2,2599.6,6.84668]
[1727188127860,3.84533,2600.6,2599.8,5.49071]
[1727188128071,0.55,2600.3,2598.9,1.6443]
[1727188128357,3.84685,2599.6,2598.9,5.49206]
[1727188128561,3.84685,2599.6,2598.4,3.84846]
[1727188128562,3.84704,2599.5,2598.6,3.84812]
[1727188128713,1.5465742,2599.6,2598.4,1.6443]
[1727188128914,1.5465742,2599.6,2596.9,3.20709253]
[1727188128915,3.84781,2598.9,2598.1,3.84885]
[1727188129167,3.84781,2598.9,2597.9,5.49352]
[1727188129168,3.84808,2598.7,2597.9,1.6443]
[1727188129467,3.84837,2598.6,2597.5,3.84971]
[1727188129618,3.84837,2598.6,2598.2,3.84877]
[1727188129619,0.0049742,2598.6,2598.2,3.84877]
[1727188129813,0.0049742,2598.6,2598.0,3.8491]
[1727188130047,0.0049742,2598.6,2598.0,3.84906]
[1727188130211,0.0049742,2598.6,2598.3,3.84853]
[1727188130418,0.0049742,2598.6,2598.0,1.6443]
[1727188130659,3.84879,2598.3,2597.6,1.6443]
[1727188130828,1.5416,2598.5,2597.6,1.6443]
[1727188131015,3.84866,2598.4,2597.6,1.6443]
[1727188131213,1.5416,2598.5,2596.9,0.385083]
[1727188131513,1.5416,2598.5,2597.4,3.84991]
[1727188131713,0.0049742,2598.5,2597.3,1.6443]
[1727188131924,3.8534142,2598.5,2597.7,3.84955]
[1727188132114,3.8534142,2598.5,2597.8,0.45435168]
[1727188132115,0.0049742,2598.5,2597.8,0.45435168]
[1727188132340,0.0049742,2598.5,2598.2,3.84881]
[1727188132557,0.0049742,2598.5,2596.9,0.39903194]
[1727188132558,0.0049742,2598.5,2597.5,3.84972]
[1727188132849,0.0049742,2598.5,2598.4,3.84852]
[1727188133055,0.0049742,2598.5,2598.4,6.39652]
[1727188134299,1.6171321,2600.1,2599.4,3.847]
[1727188134463,0.0755321,2600.1,2598.9,3.84774]
[1727188134653,0.0755321,2600.1,2599.5,3.84677]
[1727188134850,3.84633,2599.9,2599.1,3.84742]
[1727188135057,3.84633,2599.9,2598.9,5.49204]
[1727188135356,3.84633,2599.9,2599.1,3.84746]
[1727188135556,3.9215521,2600.1,2599.2,3.84722]
[1727188135557,3.9216521,2600.1,2599.2,3.84722]
[1727188135762,3.84657,2599.8,2599.3,0.384722]
[1727188135961,3.84674,2599.7,2598.9,1.6443]
[1727188136197,3.84714,2599.4,2598.6,3.84815]
[1727188136403,3.84714,2599.4,2598.7,0.549245]
[1727188136602,2.0916,2598.8,2596.4,1.6443]
[1727188136801,2.0916,2598.8,2597.6,1.6443]
[1727188136802,0.55,2598.8,2597.6,1.6443]
[1727188137110,1.5416,2599.0,2597.6,1.6443]
[1727188137308,3.84849,2598.5,2597.6,1.6443]
[1727188137600,3.84898,2598.1,2597.1,3.85038]
[1727188137958,3.84873,2598.3,2597.3,3.85004]
[1727188138167,1.5416,2598.4,2597.5,3.84985]
[1727188138801,5.39012,2598.4,2597.7,3.84953]
[1727188138970,1.5416,2598.4,2597.7,3.84953]
[1727188139170,3.84808,2598.7,2597.9,3.84915]
[1727188139585,3.84823,2598.6,2597.9,3.84915]
[1727188139797,5.38943,2598.9,2598.1,3.84896]
[1727188140000,3.84698,2599.5,2598.6,3.8481]
[1727188140209,3.84755,2599.1,2598.3,3.84861]
[1727188140389,1.5416,2599.7,2598.4,3.84839]
[1727188140390,3.84726,2599.3,2598.4,3.84839]
[1727188140589,3.84726,2599.3,2598.5,3.84835]
[1727188140773,3.84691,2599.5,2598.5,3.84827]
[1727188140973,5.38824,2599.7,2598.1,1.6443]
[1727188141179,3.84733,2599.3,2598.5,3.84833]
[1727188141468,3.84691,2599.5,2598.5,3.84833]
[1727188141686,5.38826,2599.7,2598.1,1.6443]
[1727188141687,5.38826,2599.7,2598.8,3.84792]
[1727188141905,5.38826,2599.7,2598.9,0.769589]
[1727188141906,3.84681,2599.6,2598.9,0.769589]
[1727188142110,3.84701,2599.5,2598.9,0.769589]
[1727188142265,3.84681,2599.6,2598.9,0.769589]
[1727188142465,3.8466,2599.7,2599.0,1.5682]
[1727188142704,3.8466,2599.7,2599.0,2.1867569]
[1727188143212,1.6711321,2600.1,2599.2,3.84719]
[1727188143378,3.84649,2599.8,2599.0,6.0342669]
[1727188143564,3.84649,2599.8,2599.0,5.41571]
[1727188143907,1.6711321,2600.1,2599.0,5.41571]
[1727188144261,3.84663,2599.7,2599.0,5.41571]
[1727188144483,3.84663,2599.7,2599.0,6.342068]
[1727188144689,5.5172121,2600.1,2599.3,3.84708]
[1727188144866,5.5172121,2600.1,2598.1,3.84895]
[1727188144867,3.84749,2599.1,2598.3,5.41672]
[1727188145075,1.5956,2599.6,2598.4,0.541672]
[1727188145260,1.5956,2599.6,2598.0,1.5682]
[1727188145261,4.5956,2599.2,2598.0,1.5682]
[1727188145459,3.84843,2598.5,2597.8,3.84931]
[1727188145689,3.84812,2598.7,2597.8,3.84931]
[1727188145889,3.84812,2598.7,2597.8,4.234281]
[1727188146091,3.84838,2598.5,2597.8,4.234281]
[1727188146290,0.844283,2599.1,2597.8,4.234261]
[1727188146494,0.844283,2599.1,2597.5,1.5682]
[1727188146495,0.55,2598.9,2597.6,3.84964]
[1727188146692,3.84824,2598.6,2597.8,3.84937]
[1727188146895,3.84847,2598.5,2597.8,3.84937]
[1727188147293,3.84872,2598.3,2597.5,1.5682]
[1727188147514,1.5956,2598.5,2597.6,0.06940356]
[1727188147691,5.44341,2598.9,2598.2,3.84881]
[1727188148109,1.5956,2598.9,2598.4,3.84839]
[1727188148311,5.44286,2599.3,2598.5,3.91769281]
[1727188148514,5.44286,2599.3,2598.6,4.62482828]
[1727188148515,1.5956,2599.3,2598.6,4.62482828]
[1727188148712,1.5956,2599.3,2598.4,3.84846]
[1727188148899,1.5956,2599.3,2598.2,1.953081]
[1727188148900,1.5956,2599.7,2599.0,3.84754]
[1727188149312,1.5956,2599.7,2598.9,1.5682]
[1727188149511,5.4422,2599.7,2598.9,2.10981]